bitfinex/quotes_ETHUSD_20210401
["timestamp","ask_amount","ask_price","bid_price","bid_amount"]
[1617240166047,17.99545982,1931.2,1931.1,39.78384]
[1617240167670,17.99545982,1931.2,1931.1,39.82584]
[1617240169093,16.15735982,1931.2,1931.1,39.82584]
[1617240169294,16.15735982,1931.2,1931.1,39.10384]
[1617240169495,19.70735982,1931.2,1931.1,39.10384]
[1617240169693,19.70735982,1931.2,1931.1,34.09384]
[1617240170493,19.70735982,1931.2,1931.1,28.21384]
[1617240171518,19.70735982,1931.2,1931.1,28.49384]
[1617240171720,19.70735982,1931.2,1931.1,33.50384]
[1617240171918,19.70735982,1931.2,1931.1,40.12384]
[1617240172117,17.85765982,1931.2,1931.1,40.12384]
[1617240174547,21.40765982,1931.2,1931.1,40.12384]
[1617240174745,21.40765982,1931.2,1931.1,40.02384]
[1617240174947,19.57025982,1931.2,1931.1,40.02384]
[1617240176547,19.57025982,1931.2,1931.1,33.40384]
[1617240177971,17.72935982,1931.2,1931.1,33.40384]
[1617240178171,17.72935982,1931.2,1931.1,40.02384]
[1617240178975,17.72935982,1931.2,1931.1,40.42384]
[1617240179795,21.27935982,1931.2,1931.1,40.02384]
[1617240180195,21.27935982,1931.2,1931.1,33.40384]
[1617240180995,19.43785982,1931.2,1931.1,33.81384]
[1617240182021,19.43785982,1931.2,1931.1,33.40384]
[1617240184023,17.59065982,1931.2,1931.1,33.40384]
[1617240184227,17.59065982,1931.2,1931.1,37.88384]
[1617240185065,21.14065982,1931.2,1931.1,37.88384]
[1617240185870,21.14065982,1931.2,1931.1,33.40384]
[1617240186467,21.14065982,1931.2,1931.1,28.11384]
[1617240186671,21.14065982,1931.2,1931.1,20.35]
[1617240187069,19.30355982,1931.2,1931.1,20.35]
[1617240188272,19.30355982,1931.2,1931.1,28.11326]
[1617240189671,19.30355982,1931.2,1931.1,28.40026]
[1617240189894,19.30355982,1931.2,1931.1,32.80026]
[1617240190097,20.97885982,1931.2,1931.1,32.80026]
[1617240190295,20.97885982,1931.2,1931.1,33.20026]
[1617240191696,20.97885982,1931.2,1931.1,32.80026]
[1617240193120,19.13785982,1931.2,1931.1,32.80026]
[1617240194122,19.13785982,1931.2,1931.1,32.51326]
[1617240194521,19.13785982,1931.2,1931.1,32.79326]
[1617240195345,22.68785982,1931.2,1931.1,37.52326]
[1617240196144,20.84495982,1931.2,1931.1,37.52326]
[1617240196545,20.84495982,1931.2,1931.1,37.80326]
[1617240197145,20.84495982,1931.2,1931.1,37.52326]
[1617240197348,21.00733973,1931.2,1931.1,28.11326]
[1617240197771,21.00733973,1931.2,1931.1,33.40326]
[1617240198572,21.00733973,1931.2,1931.1,33.78326]
[1617240199170,21.00733973,1931.2,1931.1,36.54326]
[1617240199171,19.16613973,1931.2,1931.1,36.54326]
[1617240200413,19.16613973,1931.2,1931.1,36.16326]
[1617240200616,22.71613973,1931.2,1931.1,36.16326]
[1617240202215,20.86953973,1931.2,1931.1,36.16326]
[1617240202416,20.86953973,1931.2,1931.1,33.40326]
[1617240202618,20.86953973,1931.2,1931.1,33.12326]
[1617240205224,19.02233973,1931.2,1931.1,33.12326]
[1617240205846,22.57233973,1931.2,1931.1,33.12326]
[1617240206045,22.57233973,1931.2,1931.1,39.44326]
[1617240207248,22.57233973,1931.2,1931.1,33.12326]
[1617240208271,20.73153973,1931.2,1931.1,33.12326]
[1617240208670,20.73153973,1931.2,1931.1,33.40326]
[1617240208871,20.73153973,1931.2,1931.1,33.79326]
[1617240209072,20.73153973,1931.2,1931.1,40.47326]
[1617240210072,20.73153973,1931.2,1931.1,40.08326]
[1617240211100,24.28153973,1931.2,1931.1,40.08326]
[1617240211299,22.44223973,1931.2,1931.1,40.08326]
[1617240211500,22.44223973,1931.2,1931.1,34.79326]
[1617240211705,22.56345189,1931.2,1931.1,34.79326]
[1617240211899,22.56345189,1931.2,1931.1,35.07326]
[1617240212702,22.56345189,1931.2,1931.1,40.08326]
[1617240212901,22.51345189,1931.2,1931.1,40.08326]
[1617240213300,22.51345189,1931.2,1931.1,39.80326]
[1617240214123,22.51345189,1931.2,1931.1,33.12326]
[1617240214323,20.67285189,1931.2,1931.1,33.12326]
[1617240216351,24.22285189,1931.2,1931.1,28.11326]
[1617240217347,22.38135189,1931.2,1931.1,28.11326]
[1617240218771,22.38135189,1931.2,1931.1,33.40326]
[1617240219372,22.38135189,1931.2,1931.1,33.12326]
[1617240220371,20.50925189,1931.2,1931.1,33.12326]
[1617240221598,24.05925189,1931.2,1931.1,33.12326]
[1617240223401,22.21695189,1931.2,1931.1,33.12326]
[1617240226429,20.37465189,1931.2,1931.1,39.64326]
[1617240226864,23.92465189,1931.2,1931.1,39.64326]
[1617240229471,22.08445189,1931.2,1931.1,33.12326]
[1617240230071,22.08445189,1931.2,1931.1,28.11326]
[1617240231074,22.08445189,1931.2,1931.1,20.35]
[1617240231672,22.47445189,1931.2,1931.1,20.28]
[1617240231907,33.78987189,1931.2,1931.1,20.28]
[1617240232708,33.39987189,1931.2,1931.1,20.28]
[1617240233307,33.39987189,1931.2,1931.1,20.24685253]
[1617240233910,25.63445189,1931.2,1931.1,20.24685253]
[1617240237151,29.18445189,1931.2,1931.1,20.24685253]
[1617240238754,30.14155189,1931.2,1931.1,20.24685253]
[1617240242404,33.69155189,1931.2,1931.1,20.24685253]
[1617240245664,41.45686189,1931.2,1931.1,20.24685253]
[1617240247462,45.00686189,1931.2,1931.1,20.24685253]
[1617240248463,37.24155189,1931.2,1931.1,20.24685253]
[1617240249463,45.00687189,1931.2,1931.1,20.24685253]
[1617240249867,37.24155189,1931.2,1931.1,20.24685253]
[1617240250484,45.00696189,1931.2,1931.1,20.24685253]
[1617240251888,37.24155189,1931.2,1931.1,20.24685253]
[1617240252492,40.79155189,1931.2,1931.1,20.24685253]
[1617240254308,48.55711189,1931.2,1931.1,20.24685253]
[1617240257736,52.10711189,1931.2,1931.1,20.24685253]
[1617240258956,60.54861189,1931.2,1931.1,20.24685253]
[1617240259354,60.54861189,1931.2,1931.1,19.42236253]
[1617240259955,60.54861189,1931.2,1930.6,1.0]
[1617240260154,3.97728894,1930.9,1930.6,1.294]
[1617240260358,8.33937304,1930.9,1930.6,1.0]
[1617240260555,3.62,1930.8,1930.6,1.0]
[1617240260790,12.056,1930.8,1930.6,1.0]
[1617240261191,3.24327569,1930.7,1930.6,1.0]
[1617240261392,21.29327569,1930.7,1930.6,1.0]
[1617240261592,21.67327569,1930.7,1930.6,1.0]
[1617240262393,3.88389,1930.4,1930.1,1.0]
[1617240262593,5.0,1930.3,1930.1,1.28]
[1617240262794,12.5895,1930.3,1930.1,1.28]
[1617240262997,2.78,1930.2,1930.1,1.28]
[1617240263615,2.78,1930.2,1930.1,9.04736]
[1617240264013,2.78,1930.2,1930.1,1.28]
[1617240264215,9.98,1930.2,1930.1,1.0]
[1617240264614,9.98,1930.2,1930.1,1.44246825]
[1617240264815,9.98,1930.2,1930.1,1.16246825]
[1617240265016,13.41903684,1930.2,1930.1,1.16246825]
[1617240265215,9.98,1930.2,1930.1,1.16246825]
[1617240265618,8.1418,1930.2,1930.1,1.16246825]
[1617240265816,8.1418,1930.2,1930.1,1.44246825]
[1617240266833,8.1418,1930.2,1930.1,6.45246825]
[1617240267032,8.1418,1930.2,1930.1,1.16246825]
[1617240267033,15.3918,1930.2,1930.1,1.16246825]
[1617240267834,14.9918,1930.2,1930.1,1.16246825]
[1617240268033,18.5418,1930.2,1930.1,1.16246825]
[1617240268658,16.6999,1930.2,1930.1,1.16246825]
[1617240273108,9.8499,1930.2,1930.1,1.16246825]
[1617240273307,13.3999,1930.2,1930.1,1.16246825]
[1617240273909,16.8242161,1930.2,1930.1,1.16246825]
[1617240278431,20.3742161,1930.2,1930.1,1.16246825]
[1617240279058,16.9499,1930.2,1930.1,1.16246825]
[1617240279657,10.65,1930.2,1930.1,1.82246825]
[1617240280256,10.65,1930.2,1930.1,9.59066825]
[1617240280655,8.8114,1930.2,1930.1,9.31066825]
[1617240280856,8.8114,1930.2,1930.1,9.66066825]
[1617240281261,8.8114,1930.2,1930.1,15.87066825]
[1617240281676,8.8114,1930.2,1930.1,15.80066825]
[1617240283279,8.8114,1930.2,1930.1,14.60066825]
[1617240283480,8.8114,1930.2,1930.1,8.93066825]
[1617240283680,10.496537,1930.2,1930.1,8.93066825]
[1617240284306,10.496537,1930.2,1930.1,9.61066825]
[1617240284508,10.496537,1930.2,1930.1,9.33066825]
[1617240285711,10.496537,1930.2,1930.1,9.61066825]
[1617240286310,10.496537,1930.2,1930.1,8.93066825]
[1617240286709,8.609037,1930.2,1930.1,8.93066825]
[1617240286926,8.609037,1930.2,1930.1,10.81066825]
[1617240288532,8.609037,1930.2,1930.1,15.82066825]
[1617240288728,12.159037,1930.2,1930.1,15.82066825]
[1617240288929,12.159037,1930.2,1930.1,15.42066825]
[1617240289786,10.314737,1930.2,1930.1,15.83066825]
[1617240292787,8.475537,1930.2,1930.1,15.83066825]
[1617240293988,12.025537,1930.2,1930.1,15.83066825]
[1617240295010,12.025537,1930.2,1930.1,15.42066825]
[1617240295213,12.025537,1930.2,1930.1,8.93066825]
[1617240295411,12.025537,1930.2,1930.1,1.16246825]
[1617240299035,12.025537,1930.2,1930.1,1.44246825]
[1617240299236,15.575537,1930.2,1930.1,1.44246825]
[1617240299434,15.575537,1930.2,1930.1,6.45246825]
[1617240299637,15.575537,1930.2,1930.1,2.64246825]
[1617240299834,15.575537,1930.2,1930.1,1.16246825]
[1617240300259,15.575537,1930.2,1930.1,9.21054825]
[1617240300458,15.575537,1930.2,1930.1,14.22054825]
[1617240300657,15.575537,1930.2,1930.1,12.89054825]
[1617240300858,15.575537,1930.2,1930.1,14.09054825]
[1617240301860,11.893537,1930.2,1930.1,12.89054825]
[1617240303085,11.893537,1930.2,1930.1,14.09054825]
[1617240303484,11.893537,1930.2,1930.1,8.93054825]
[1617240303688,11.893537,1930.2,1930.1,1.16246825]
[1617240304488,23.211627,1930.2,1930.1,1.16246825]
[1617240304687,23.201027,1930.2,1930.1,1.16246825]
[1617240305332,12.78572741,1930.1,1929.8,5.15675258]
[1617240305531,12.78572741,1930.1,1929.7,1.2]
[1617240305532,7.2,1929.9,1929.7,1.2]
[1617240305833,11.19349564,1929.8,1929.6,0.8]
[1617240306036,16.42,1929.7,1929.6,0.8]
[1617240306236,16.96,1929.7,1929.6,0.8]
[1617240307035,16.56,1929.7,1929.6,0.8]
[1617240307236,11.56,1929.7,1929.6,0.8]
[1617240308244,19.3303,1929.7,1929.6,0.8]
[1617240309846,11.4603,1929.7,1929.6,0.8]
[1617240311862,11.8603,1929.7,1929.6,0.8]
[1617240312058,15.3003449,1929.7,1929.6,0.8]
[1617240312261,23.5003449,1929.7,1929.6,0.7]
[1617240312459,10.3003449,1929.7,1929.6,0.7]
[1617240312664,14.8503449,1929.7,1929.6,0.7]
[1617240313688,9.9003449,1929.7,1929.6,0.7]
[1617240313888,6.4603,1929.7,1929.6,0.7]
[1617240314687,18.9316663,1929.7,1929.6,0.7]
[1617240314887,10.0103,1929.7,1929.6,0.7]
[1617240315488,13.5603,1929.7,1929.6,0.7]
[1617240315911,17.04689688,1929.7,1929.6,0.7]
[1617240316735,24.81719688,1929.7,1929.6,0.7]
[1617240319154,25.19719688,1929.7,1929.6,0.0001]
[1617240319755,20.19719688,1929.7,1929.6,0.0001]
[1617240319956,19.81719688,1929.7,1929.6,0.0001]
[1617240320157,23.36719688,1929.7,1929.6,0.0001]
[1617240321358,19.8806,1929.7,1929.6,0.0001]
[1617240324585,19.7806,1929.7,1929.6,0.0001]
[1617240325387,23.3306,1929.7,1929.6,0.0001]
[1617240327008,31.6644,1929.7,1929.6,0.0001]
[1617240328209,35.2644,1929.7,1929.6,0.0001]
[1617240330639,38.8144,1929.7,1929.6,0.0001]
[1617240330839,44.55363457,1929.7,1929.6,0.0001]
[1617240331240,38.8144,1929.7,1929.6,0.0001]
[1617240331657,44.55366255,1929.7,1929.6,0.0001]
[1617240332058,38.8144,1929.7,1929.6,0.0001]
[1617240332457,44.55359662,1929.7,1929.6,0.0001]
[1617240332656,38.8144,1929.7,1929.6,0.0001]
[1617240335713,42.3644,1929.7,1929.6,0.0001]
[1617240340932,45.9144,1929.7,1929.6,0.0001]
[1617240346186,49.4644,1929.7,1929.6,0.0001]
[1617240348413,79.8444,1929.7,1929.6,0.0001]
[1617240349416,79.4644,1929.7,1929.6,0.0001]
[1617240349613,49.4644,1929.7,1929.6,0.0001]
[1617240351454,53.0144,1929.7,1929.6,0.0001]
[1617240354064,53.3049,1929.7,1929.6,0.0001]
[1617240354665,52.9049,1929.7,1929.6,0.0001]
[1617240355065,52.9049,1929.7,1928.8,1.2]
[1617240355066,27.26207534,1929.6,1928.8,1.2]
[1617240355293,7.1203,1929.3,1928.8,1.48]
[1617240355496,0.18506894,1929.2,1928.8,1.578]
[1617240356094,30.18506894,1929.2,1928.8,1.578]
[1617240356295,5.72,1929.1,1928.8,1.578]
[1617240356495,19.27,1929.1,1928.8,1.578]
[1617240357094,49.27,1929.1,1928.8,1.578]
[1617240357298,15.37342,1929.0,1928.8,0.378]
[1617240357495,7.6,1928.9,1928.8,1.48]
[1617240357694,25.0302,1928.9,1928.8,1.2]
[1617240357915,3.76,1928.8,1928.6,1.0]
[1617240358115,3.76,1928.8,1928.7,0.392]
[1617240359115,10.2037,1928.7,1928.6,0.4349]
[1617240359315,15.0837,1928.7,1928.6,0.7149]
[1617240360116,4.88,1928.7,1928.6,0.7149]
[1617240360315,10.091,1929.0,1928.6,0.7149]
[1617240360740,0.091,1929.0,1928.6,0.7149]
[1617240361141,7.77367,1928.8,1928.6,0.7149]
[1617240361774,11.32367,1928.8,1928.6,0.7149]
[1617240361972,11.32367,1928.8,1928.6,0.4649]
[1617240362171,9.48417,1928.8,1928.6,0.4649]
[1617240365182,7.64547,1928.8,1928.6,0.4649]
[1617240366008,8.64547,1928.8,1928.6,0.4649]
[1617240366808,12.19547,1928.8,1928.6,0.4649]
[1617240368312,10.35617,1928.8,1928.6,0.4649]
[1617240370317,10.35617,1928.8,1928.6,0.1849]
[1617240371339,16.21433772,1928.7,1928.6,0.1849]
[1617240371541,21.8,1928.6,1928.1,0.0982375]
[1617240371740,3.60433772,1928.5,1928.1,0.0982375]
[1617240371939,3.91406894,1928.4,1928.1,0.0982375]
[1617240372740,4.05406894,1928.4,1928.1,0.0982375]
[1617240373142,7.7763,1928.3,1928.1,0.0982375]
[1617240374366,16.88665,1928.2,1928.1,0.0982375]
[1617240374567,11.03665,1928.2,1928.1,0.0982375]
[1617240375769,1.0,1928.2,1928.1,0.0982375]
[1617240376593,1.0,1928.2,1928.1,0.4882375]
[1617240377198,24.93248894,1928.6,1928.1,0.4882375]
[1617240377394,3.55,1928.2,1928.1,8.5493375]
[1617240377593,3.55,1928.2,1928.1,9.7493375]
[1617240377994,3.55,1928.2,1928.1,17.8040775]
[1617240378196,3.55,1928.2,1928.1,20.6040775]
[1617240380019,3.55,1928.2,1928.1,21.78290909]
[1617240380218,1.706,1928.2,1928.1,21.78290909]
[1617240380619,1.706,1928.2,1928.1,20.58290909]
[1617240381020,1.706,1928.2,1928.1,11.65526909]
[1617240381221,1.706,1928.2,1928.1,12.85526909]
[1617240381441,1.706,1928.2,1928.1,10.98526909]
[1617240381644,1.706,1928.2,1928.1,0.12416909]
[1617240381841,10.256,1928.2,1928.1,0.12416909]
[1617240382440,10.256,1928.2,1928.1,0.07416909]
[1617240382641,13.806,1928.2,1928.1,0.07416909]
[1617240382844,23.9555871,1928.2,1928.1,0.07416909]
[1617240383243,18.6662,1928.2,1928.1,0.07416909]
[1617240383444,11.9662,1928.2,1928.1,0.07416909]
[1617240383642,15.41559964,1928.2,1928.1,0.07416909]
[1617240384866,26.96559964,1928.2,1928.1,6.909e-05]
[1617240385069,34.74267964,1928.2,1928.1,6.909e-05]
[1617240385268,64.74267964,1928.2,1928.1,6.909e-05]
[1617240385666,34.74267964,1928.2,1928.1,6.909e-05]
[1617240386693,65.14267964,1928.2,1928.1,6.909e-05]
[1617240387094,77.34267964,1928.2,1928.1,6.909e-05]
[1617240387294,77.48267964,1928.2,1928.1,6.909e-05]
[1617240387492,78.48267964,1928.2,1928.1,6.909e-05]
[1617240387694,82.03267964,1928.2,1928.1,6.909e-05]
[1617240388295,3.89026,1927.9,1927.1,1.0]
[1617240388495,3.89026,1927.9,1927.3,0.364]
[1617240388496,10.14,1927.8,1927.3,0.364]
[1617240388699,3.44217074,1927.6,1927.3,0.364]
[1617240388897,13.44217074,1927.6,1927.3,0.364]
[1617240389095,2.0,1927.5,1927.1,1.0]
[1617240389320,3.44217074,1927.4,1927.1,1.28]
[1617240389521,10.0,1927.2,1927.1,0.9]
[1617240389721,28.29217074,1927.2,1927.1,0.9]
[1617240390124,24.85,1927.2,1927.1,0.9]
[1617240390521,12.0,1927.2,1927.1,0.9]
[1617240390722,18.6,1927.2,1927.1,0.9]
[1617240391723,28.0,1927.2,1927.1,0.9]
[1617240392340,29.3247,1927.2,1927.1,0.0001]
[1617240392544,29.2247,1927.2,1927.1,0.0001]
[1617240392743,59.2247,1927.2,1927.1,0.0001]
[1617240392942,32.7747,1927.2,1927.1,0.0001]
[1617240393341,62.7747,1927.2,1927.1,0.0001]
[1617240393741,71.1747,1927.2,1927.1,0.0001]
[1617240393946,24.95,1927.1,1926.1,3.068437]
[1617240394144,24.95,1927.1,1925.6,21.70451554]
[1617240394145,34.85,1926.3,1925.6,1.0]
[1617240394342,34.85,1926.3,1925.6,0.93]
[1617240394343,0.14,1925.9,1925.6,0.93]
[1617240394588,9.9,1925.8,1925.6,0.93]
[1617240394783,26.50629808,1925.7,1925.6,0.93]
[1617240394983,42.35109808,1925.7,1925.6,0.93]
[1617240395183,38.9448,1925.7,1925.6,0.86]
[1617240395383,24.55,1925.6,1925.3,11.02157172]
[1617240395585,42.05,1925.6,1925.3,11.02157172]
[1617240395784,2.0,1925.5,1925.3,11.02157172]
[1617240396182,32.80788662,1925.4,1925.3,11.02157172]
[1617240396586,24.4,1925.4,1925.3,11.02157172]
[1617240397194,25.0,1925.3,1925.1,1.0]
[1617240397396,35.46418182,1925.1,1925.0,0.05]
[1617240397695,21.26418182,1925.1,1925.0,0.05]
[1617240397895,22.45864606,1925.1,1925.0,0.05]
[1617240398095,26.38864606,1925.1,1925.0,0.05]
[1617240398495,6.74446424,1925.1,1925.0,0.05]
[1617240398896,5.55,1925.1,1925.0,0.05]
[1617240399297,9.01418182,1925.1,1925.0,0.05]
[1617240399700,13.95,1925.1,1925.0,0.05]
[1617240399920,21.74044,1925.1,1925.0,0.05]
[1617240400924,15.14446424,1925.1,1925.0,0.05]
[1617240401524,19.20346292,1925.1,1924.6,1.0]
[1617240401727,5.01,1924.9,1924.6,1.0]
[1617240401922,15.86418182,1924.8,1924.6,1.0]
[1617240402122,15.95825076,1924.8,1924.6,1.0]
[1617240402569,15.95825076,1924.8,1924.1,1.0]
[1617240402570,7.79372,1924.4,1924.1,1.0]
[1617240402768,2.0,1924.3,1924.1,1.0]
[1617240403171,5.55,1924.3,1924.1,1.0]
[1617240403769,21.89439,1924.2,1924.1,1.0]
[1617240403969,26.90439,1924.2,1924.1,1.0]
[1617240404169,27.04439,1924.2,1924.1,1.0]
[1617240404371,14.24,1924.2,1924.1,1.0]
[1617240404969,2.14,1924.2,1924.1,1.0]
[1617240405182,2.0,1924.2,1924.1,1.0]
[1617240405583,15.3,1924.2,1924.1,1.0]
[1617240406182,2.0,1924.2,1924.1,1.0]
[1617240406582,14.55,1924.2,1924.1,1.0]
[1617240406806,14.55,1924.2,1924.1,1.39593726]
[1617240407605,3.0,1924.2,1924.1,1.39593726]
[1617240408443,3.0,1924.2,1924.1,1.79593726]
[1617240408444,6.55,1924.2,1924.1,1.79593726]
[1617240410242,6.55,1924.2,1924.1,1.39593726]
[1617240410461,4.7124,1924.2,1924.1,1.80593726]
[1617240412064,4.7124,1924.2,1924.1,1.39593726]
[1617240412464,36.7144,1924.2,1923.8,0.39]
[1617240412665,36.7144,1924.2,1923.6,1.0]
[1617240412666,6.97,1924.1,1923.6,1.0]
[1617240412865,3.59983512,1924.0,1923.6,1.0]
[1617240413069,0.14,1923.9,1923.6,1.0]
[1617240413468,3.69,1923.9,1923.6,1.0]
[1617240413670,3.69,1923.9,1923.7,0.41]
[1617240413671,0.1624,1923.8,1923.7,0.41]
[1617240414269,0.1624,1923.8,1923.6,1.0]
[1617240415070,0.1624,1923.8,1923.7,0.39]
[1617240415473,0.1624,1923.8,1923.6,1.0]
[1617240415895,3.59983512,1923.8,1923.6,1.0]
[1617240416093,0.1624,1923.8,1923.6,1.0]
[1617240417495,1.1624,1923.8,1923.6,1.0]
[1617240418313,1.1624,1923.8,1923.6,0.9]
[1617240418514,1.1624,1923.8,1923.7,0.39]
[1617240418712,4.7124,1923.8,1923.7,0.39]
[1617240419313,14.3624,1923.8,1923.6,0.9]
[1617240419513,4.7124,1923.8,1923.6,0.9]
[1617240420713,4.7124,1923.8,1923.7,0.39]
[1617240421543,4.7124,1923.8,1923.6,0.9]
[1617240422147,4.7124,1923.8,1923.7,0.4]
[1617240423146,4.7124,1923.8,1923.7,10.5161046]
[1617240423349,4.7124,1923.8,1923.7,28.45690144]
[1617240423595,4.7124,1923.8,1923.7,26.69999684]
[1617240423993,8.2624,1923.8,1923.7,26.69999684]
[1617240425196,3.55,1924.2,1924.0,0.392]
[1617240425400,3.55,1924.3,1924.2,20.62591136]
[1617240425596,3.55,1924.3,1924.2,29.3667082]
[1617240425597,1.7113,1924.3,1924.2,29.3667082]
[1617240425794,1.7113,1924.3,1924.2,23.54879684]
[1617240425994,1.7113,1924.3,1924.2,24.65449684]
[1617240426195,1.7113,1924.3,1924.2,31.14359684]
[1617240427195,1.7113,1924.3,1924.2,31.04359684]
[1617240427797,2.7113,1924.3,1924.2,31.04359684]
[1617240428396,2.7113,1924.3,1924.2,30.09449684]
[1617240428598,0.8695,1924.3,1924.2,16.79449684]
[1617240428823,0.8695,1924.3,1924.2,15.68879684]
[1617240429021,4.4195,1924.3,1924.2,15.68879684]
[1617240429222,4.4195,1924.3,1924.2,20.73879684]
[1617240429422,4.4195,1924.3,1924.2,15.68879684]
[1617240429822,4.3695,1924.3,1924.2,24.73879684]
[1617240430022,4.3695,1924.3,1924.2,32.87729684]
[1617240430422,3.96650418,1924.3,1924.2,34.82239684]
[1617240431439,3.96650418,1924.3,1924.2,25.77239684]
[1617240431641,2.09210418,1924.3,1924.2,25.77239684]
[1617240432441,2.09210418,1924.3,1924.2,17.63389684]
[1617240432840,2.09210418,1924.3,1924.2,16.31619684]
[1617240433042,2.25507058,1924.3,1924.2,16.31619684]
[1617240433245,2.25507058,1924.3,1924.2,34.41519684]
[1617240433443,3.55,1925.1,1924.4,12.3537187]
[1617240433642,3.55,1925.1,1925.0,0.4]
[1617240433842,3.55,1925.1,1925.0,6.3067]
[1617240434271,7.1,1925.1,1925.0,6.3067]
[1617240434471,7.1,1925.1,1925.0,14.09409]
[1617240434672,5.2582,1925.1,1925.0,18.09409]
[1617240435071,5.2582,1925.1,1925.0,26.24488684]
[1617240435271,5.2582,1925.1,1925.0,18.09409]
[1617240437130,5.2582,1925.1,1925.0,26.24488684]
[1617240437736,4.4197,1925.1,1925.0,26.24488684]
[1617240437930,4.4197,1925.1,1925.0,18.09409]
[1617240438931,4.4197,1925.1,1925.0,26.24488684]
[1617240439538,7.9697,1925.1,1925.0,26.24488684]
[1617240440139,7.9697,1925.1,1925.0,27.44488684]
[1617240440739,6.1298,1925.1,1925.0,27.44488684]
[1617240443542,0.9402,1925.1,1925.0,27.44488684]
[1617240443746,0.1032,1925.9,1925.4,0.413]
[1617240443944,0.1032,1925.9,1925.8,5.19]
[1617240444143,0.1032,1925.9,1925.8,14.7417]
[1617240444342,0.1032,1925.9,1925.8,13.1217]
[1617240444763,3.6532,1925.9,1925.8,13.1217]
[1617240445365,3.6532,1925.9,1925.8,22.87957433]
[1617240446167,4.69583483,1925.9,1925.8,23.25957433]
[1617240446370,3.6532,1925.9,1925.8,23.25957433]
[1617240446767,1.8151,1925.9,1925.8,20.89447]
[1617240447787,2.8151,1925.9,1925.8,20.89447]
[1617240447988,1.0,1926.4,1925.8,20.89447]
[1617240448189,1.14,1926.4,1926.0,0.38]
[1617240448590,1.14,1926.4,1926.1,0.4]
[1617240449391,1.14,1926.4,1926.1,8.18317]
[1617240449591,1.14,1926.4,1926.1,11.00317]
[1617240449817,0.14,1926.5,1926.2,0.41]
[1617240450018,0.23406894,1926.7,1926.2,0.41]
[1617240450619,0.14,1926.7,1926.2,0.41]
[1617240450818,0.14,1926.7,1926.3,7.78234]
[1617240451020,0.14,1926.7,1926.1,0.39]
[1617240452030,0.14,1926.7,1926.1,8.17342]
[1617240453037,0.14,1926.7,1926.1,10.99342]
[1617240453844,0.14,1926.7,1926.4,10.27467684]
[1617240454249,0.14,1926.7,1926.4,3.89118]
[1617240455090,3.69,1926.7,1926.4,3.89118]
[1617240455693,3.55,1926.7,1926.4,3.89118]
[1617240455889,3.55,1926.7,1926.4,8.25118]
[1617240456291,3.55,1926.7,1926.4,16.0337]
[1617240456490,3.55,1926.7,1926.4,16.3137]
[1617240456691,3.82161824,1926.6,1926.4,4.36]
[1617240456897,5.16161824,1926.6,1926.0,10.37722]
[1617240457091,10.26568718,1926.6,1926.0,10.37722]
[1617240457291,12.23298718,1926.6,1926.0,10.37722]
[1617240457691,11.03298718,1926.6,1926.0,10.37722]
[1617240457890,11.03298718,1926.6,1926.0,10.65722]
[1617240458093,7.21136894,1926.6,1926.0,11.04722]
[1617240458292,0.23406894,1926.6,1926.1,0.41]
[1617240458493,0.23406894,1926.6,1926.0,10.37722]
[1617240458697,3.57161824,1926.4,1925.9,5.18861]
[1617240458892,3.43161824,1926.1,1925.9,5.18861]
[1617240459293,0.4,1926.3,1925.9,5.18861]
[1617240459496,0.23406894,1926.4,1926.0,0.39]
[1617240459693,0.14,1926.4,1926.0,0.67]
[1617240459893,0.14,1926.4,1926.0,0.39]
[1617240460093,0.14,1926.4,1925.9,5.46861]
[1617240460313,3.78406894,1926.4,1925.9,5.86861]
[1617240460515,3.5615648,1926.2,1925.9,10.3785]
[1617240460715,3.4215648,1925.9,1925.4,12.97129]
[1617240460915,3.4215648,1925.9,1925.2,5.19005]
[1617240460916,3.5615648,1925.9,1925.2,5.47005]
[1617240461115,0.39,1925.8,1925.2,5.87005]
[1617240461716,0.39,1925.8,1925.5,7.78598]
[1617240462119,0.39,1925.8,1925.6,3.89277]
[1617240462943,0.39,1925.7,1925.6,3.89277]
[1617240463144,0.39,1925.7,1925.5,10.3804]
[1617240464746,0.14,1925.9,1925.5,10.3804]
[1617240464947,3.90563374,1926.1,1925.6,3.89281]
[1617240465144,0.48406894,1926.1,1925.6,4.29281]
[1617240465564,4.03406894,1926.1,1925.6,3.89281]
[1617240465965,0.38,1925.8,1925.6,3.89281]
[1617240466164,0.38,1925.8,1925.5,10.3804]
[1617240467166,0.14,1925.9,1925.5,10.3804]
[1617240467370,0.14,1925.9,1925.6,3.89253]
[1617240468208,0.14,1925.9,1925.7,7.78491]
[1617240468410,3.55,1926.1,1925.7,7.78491]
[1617240468609,3.55,1926.1,1925.7,11.67685]
[1617240468808,3.55,1926.1,1925.7,7.29194]
[1617240469008,0.41,1926.0,1925.7,7.29194]
[1617240469211,0.41,1926.0,1925.8,10.3785]
[1617240469409,3.55,1926.1,1925.8,10.3785]
[1617240470209,3.55,1926.1,1925.8,15.30307]
[1617240470409,3.55,1926.1,1925.9,7.78397]
[1617240470812,7.1,1926.1,1925.9,7.78397]
[1617240472213,7.1,1926.1,1925.9,11.76397]
[1617240473214,7.1,1926.1,1925.9,13.8395949]
[1617240473437,7.1,1926.1,1925.9,6.0556249]
[1617240473635,7.1,1926.1,1925.9,3.98]
[1617240475240,7.1,1926.1,1926.0,7.78442]
[1617240475638,7.1,1926.1,1925.8,5.9678001]
[1617240475840,7.1,1926.1,1925.8,3.89207]